bitfinex/quotes_BTCUSD_20241024
["timestamp","ask_amount","ask_price","bid_price","bid_amount"]
[1729780885330,0.21585933,67923.0,67922.0,0.001648]
[1729780885540,0.173021,67923.0,67922.0,0.001648]
[1729780885744,0.025796,67923.0,67922.0,0.001648]
[1729780885959,0.173021,67923.0,67922.0,0.001648]
[1729780886598,0.025796,67923.0,67922.0,0.001648]
[1729780886805,0.173021,67923.0,67922.0,0.001648]
[1729780890300,0.002796,67923.0,67922.0,0.001648]
[1729780890516,0.002796,67923.0,67922.0,0.148875]
[1729780890727,0.000825,67929.0,67923.0,0.0793]
[1729780890948,0.000825,67929.0,67925.0,0.294442]
[1729780891169,0.000825,67929.0,67928.0,0.147214]
[1729780892772,0.000825,67929.0,67926.0,0.294438]
[1729780893199,0.000825,67929.0,67928.0,0.147214]
[1729780894355,0.000825,67929.0,67923.0,0.0793]
[1729780894564,0.000825,67929.0,67924.0,0.147222]
[1729780894768,0.000825,67929.0,67923.0,0.226524]
[1729780894975,0.000825,67929.0,67924.0,0.147222]
[1729780896582,0.148039,67929.0,67924.0,0.147222]
[1729780897248,0.000825,67929.0,67924.0,0.147222]
[1729780897915,0.148037,67929.0,67924.0,0.147222]
[1729780898115,0.000825,67929.0,67924.0,0.147222]
[1729780898631,0.000825,67929.0,67925.0,0.147219]
[1729780899469,0.00255425,67928.0,67925.0,0.147219]
[1729780900745,0.00255425,67928.0,67923.0,0.0793]
[1729780900946,0.29698725,67928.0,67922.0,0.001648]
[1729780901170,0.00255425,67928.0,67922.0,0.001648]
[1729780901382,0.147218,67927.0,67922.0,0.148874]
[1729780901583,0.00255425,67928.0,67922.0,0.001648]
[1729780901761,0.00254488,67926.0,67922.0,0.001648]
[1729780902001,0.147218,67927.0,67922.0,0.148874]
[1729780902211,0.00254488,67925.0,67922.0,0.148874]
[1729780902446,0.00254722,67926.0,67922.0,0.148874]
[1729780902660,0.00254488,67924.0,67922.0,0.001648]
[1729780902875,0.294432,67928.0,67922.0,0.001648]
[1729780903080,0.00254253,67923.0,67922.0,0.001648]
[1729780903289,0.14722,67926.0,67922.0,0.148875]
[1729780903512,0.00254236,67923.0,67922.0,0.001648]
[1729780903743,0.147219,67926.0,67922.0,0.148874]
[1729780903959,0.0025447,67923.0,67922.0,0.148874]
[1729780904166,0.147219,67926.0,67922.0,0.148874]
[1729780904388,0.147217,67927.0,67922.0,0.001648]
[1729780904604,0.00254253,67925.0,67922.0,0.296099]
[1729780904838,0.00254253,67925.0,67922.0,0.001648]
[1729780904839,0.147225,67923.0,67922.0,0.001648]
[1729780905295,0.14976026,67923.0,67922.0,0.001648]
[1729780912269,0.33301701,67923.0,67922.0,0.001648]
[1729780916858,0.57727716,67923.0,67922.0,0.001648]
[1729780917067,0.65308074,67923.0,67922.0,0.001648]
[1729780917436,0.17276026,67923.0,67922.0,0.001648]
[1729780920586,0.16816852,67923.0,67922.0,0.001648]
[1729780920796,0.14967236,67923.0,67922.0,0.001648]
[1729780922887,0.30017617,67923.0,67922.0,0.001648]
[1729780929754,0.70003292,67923.0,67922.0,0.001648]
[1729780929991,0.74412813,67923.0,67922.0,0.001648]
[1729780930206,0.85053673,67923.0,67922.0,0.001648]
[1729780930427,0.97673673,67923.0,67922.0,0.001648]
[1729780930657,0.82623292,67923.0,67922.0,0.001648]
[1729780931122,0.64297617,67923.0,67922.0,0.001648]
[1729780933088,0.82623292,67923.0,67922.0,0.001648]
[1729780933349,0.82823292,67923.0,67922.0,0.001648]
[1729780934033,0.97673673,67923.0,67922.0,0.001648]
[1729780934238,0.97673673,67923.0,67910.0,0.21790815]
[1729780934239,0.005,67918.0,67910.0,0.21790815]
[1729780934441,0.33050775,67911.0,67910.0,0.21790815]
[1729780934863,0.33050775,67911.0,67902.0,0.36853015]
[1729780934864,0.147264,67906.0,67902.0,0.36853015]
[1729780935072,0.294512,67909.0,67902.0,0.36853015]
[1729780935285,0.1496625,67905.0,67902.0,0.14727]
[1729780935488,0.29452,67907.0,67901.0,0.00165]
[1729780935709,0.18325675,67902.0,67901.0,0.00165]
[1729780935892,0.33052775,67902.0,67901.0,0.00165]
[1729780936139,0.33293053,67902.0,67901.0,0.00165]
[1729780936772,0.18565953,67902.0,67901.0,0.00165]
[1729780944326,0.35472929,67902.0,67901.0,0.00165]
[1729780944543,0.50200029,67902.0,67901.0,0.00165]
[1729780944798,0.48343434,67902.0,67901.0,0.00165]
[1729780945054,0.15290659,67902.0,67901.0,0.00165]
[1729780945282,0.00240278,67902.0,67901.0,0.00165]
[1729780945772,0.147259,67908.0,67901.0,0.00165]
[1729780946054,0.00239787,67902.0,67901.0,0.00165]
[1729780946307,0.18325675,67905.0,67901.0,0.00165]
[1729780946565,0.00239787,67902.0,67901.0,0.00165]
[1729780946800,0.02858922,67960.0,67901.0,0.00165]
[1729780946801,0.005,67918.0,67901.0,0.00165]
[1729780947073,0.00228754,67902.0,67901.0,0.29942681]
[1729780947357,0.22126015,67915.0,67914.0,0.147245]
[1729780947599,0.22126015,67915.0,67914.0,0.0779]
[1729780947808,0.00231568,67915.0,67914.0,0.0779]
[1729780948268,0.000825,67923.0,67914.0,0.0779]
[1729780948269,0.01609222,67923.0,67914.0,0.0779]
[1729780948467,0.01609222,67923.0,67902.0,0.294542]
[1729780948468,0.18325675,67919.0,67908.0,0.0779]
[1729780948679,0.18325675,67919.0,67911.0,0.0046045]
[1729780948900,0.00231351,67918.0,67909.0,0.2991155]
[1729780949118,0.00231351,67918.0,67908.0,0.0779]
[1729780949119,0.00231351,67918.0,67913.0,0.22126015]
[1729780949331,0.00231351,67918.0,67916.0,0.147239]
[1729780949577,0.00231351,67918.0,67911.0,0.294503]
[1729780949578,0.22208515,67923.0,67915.0,0.147241]
[1729780949801,0.00231586,67917.0,67914.0,0.29449]
[1729780950084,0.22208515,67923.0,67915.0,0.147241]
[1729780950302,0.22208515,67923.0,67913.0,0.147246]
[1729780950543,0.00231586,67922.0,67913.0,0.147246]
[1729780951392,0.00231586,67922.0,67908.0,0.0779]
[1729780951641,0.18325675,67915.0,67911.0,0.14725]
[1729780951853,0.18408275,67915.0,67908.0,0.0779]
[1729780952035,0.00231164,67914.0,67910.0,0.147252]
[1729780952332,0.00231164,67914.0,67908.0,0.372416]
[1729780952333,0.00231164,67914.0,67913.0,0.147247]
[1729780952553,0.000826,67915.0,67913.0,0.147247]
[1729780952554,0.000826,67915.0,67914.0,0.227145]
[1729780952767,0.000826,67915.0,67914.0,0.56551029]
[1729780953688,0.000826,67915.0,67914.0,0.38225354]
[1729780955502,0.000826,67915.0,67914.0,0.37764881]
[1729780955714,0.000826,67915.0,67914.0,0.38225261]
[1729780956819,0.000826,67915.0,67914.0,0.2317488]
[1729780957256,0.000826,67915.0,67914.0,0.0799]
[1729780957469,0.18408275,67915.0,67908.0,0.0823]
[1729780957672,0.000826,67915.0,67910.0,0.22126015]
[1729780957898,0.00199672,67914.0,67913.0,0.147247]
[1729780958127,0.00199672,67914.0,67912.0,0.147248]
[1729780958361,0.00199672,67914.0,67908.0,0.1340633]
[1729780958362,0.000826,67915.0,67913.0,0.147246]
[1729780958571,0.000826,67915.0,67914.0,0.147245]
[1729780959223,0.000826,67915.0,67913.0,0.147246]
[1729780959447,0.000826,67915.0,67914.0,0.147245]
[1729780959673,0.000826,67915.0,67910.0,0.294507]
[1729780959915,0.000826,67915.0,67908.0,0.376814]
[1729780960165,0.000826,67915.0,67909.0,0.147254]
[1729780960428,0.000826,67915.0,67908.0,0.229557]
[1729780960642,0.00199672,67914.0,67908.0,0.229557]
[1729780961478,0.00199672,67914.0,67904.0,0.294531]
[1729780961694,0.00199672,67914.0,67905.0,0.147264]
[1729780961931,0.147249,67913.0,67903.0,0.08670477]
[1729780962140,0.147249,67913.0,67905.0,0.147262]
[1729780962359,0.14924203,67912.0,67904.0,0.147266]
[1729780962574,0.14924203,67912.0,67905.0,0.147263]
[1729780963059,0.00199203,67912.0,67906.0,0.14726]
[1729780963810,0.14924103,67912.0,67906.0,0.14726]
[1729780964017,0.00199203,67912.0,67907.0,0.22126015]
[1729780964220,0.00199203,67912.0,67911.0,0.147251]
[1729780964425,0.000826,67915.0,67911.0,0.0441767]
[1729780964628,0.000826,67915.0,67908.0,0.294516]
[1729780964833,0.00193627,67914.0,67908.0,0.294516]
[1729780965026,0.00193627,67914.0,67905.0,0.001652]
[1729780965495,0.147248,67913.0,67908.0,0.147257]
[1729780965697,0.14918127,67914.0,67908.0,0.147257]
[1729780966011,0.14918127,67914.0,67906.0,0.294524]
[1729780966012,0.147245,67914.0,67909.0,0.147255]
[1729780966434,0.00193627,67913.0,67910.0,0.147252]
[1729780966650,0.00193627,67913.0,67910.0,0.147253]
[1729780966898,0.000826,67915.0,67910.0,0.147253]
[1729780967144,0.00184369,67912.0,67911.0,0.147251]
[1729780967378,0.000826,67915.0,67914.0,0.147245]
[1729780967627,0.000826,67915.0,67914.0,0.223245]
[1729780971322,0.000826,67915.0,67914.0,0.55700556]
[1729780972039,0.000826,67915.0,67914.0,0.37374881]
[1729780972904,0.000826,67915.0,67914.0,0.223245]
[1729780973125,0.000826,67915.0,67905.0,0.001652]
[1729780973344,0.000826,67915.0,67905.0,0.15215581]
[1729780973345,0.18325675,67912.0,67905.0,0.15215581]
[1729780973556,0.18325675,67912.0,67908.0,0.294516]
[1729780973766,0.000826,67915.0,67911.0,0.147251]
[1729780973996,0.000826,67915.0,67913.0,0.147245]
[1729780974201,0.000826,67915.0,67911.0,0.14725]
[1729780974421,0.00176318,67914.0,67911.0,0.14725]
[1729780974631,0.00176318,67914.0,67912.0,0.147247]
[1729780975728,0.00176318,67914.0,67909.0,0.147254]
[1729780975729,0.14900818,67914.0,67909.0,0.147254]
[1729780975948,0.00176318,67914.0,67910.0,0.147252]
[1729780976167,0.18325675,67911.0,67909.0,0.00460468]
[1729780976371,0.33050875,67911.0,67910.0,0.00460474]
[1729780976583,0.33050875,67911.0,67910.0,0.00625474]
[1729780976802,0.33227076,67911.0,67910.0,0.00165]
[1729780977463,0.14901401,67911.0,67910.0,0.00165]
[1729780977680,0.147251,67911.0,67910.0,0.00165]
[1729780977933,0.33050775,67911.0,67910.0,0.00165]
[1729780978360,0.41320775,67911.0,67910.0,0.00165]
[1729780980066,0.33050775,67911.0,67910.0,0.00165]
[1729780984513,0.83071156,67911.0,67910.0,0.00165]
[1729780984748,0.83271156,67911.0,67910.0,0.00165]
[1729780984984,0.83071156,67911.0,67910.0,0.00165]
[1729780985224,0.97916589,67911.0,67910.0,0.00165]
[1729780985480,0.99665146,67911.0,67910.0,0.00165]
[1729780985730,0.99465146,67911.0,67910.0,0.00165]
[1729780986238,0.8707755,67906.0,67905.0,0.001652]
[1729780986480,0.98852637,67906.0,67905.0,0.001652]
[1729780989205,1.00390646,67906.0,67905.0,0.001652]
[1729780990182,1.00590646,67906.0,67905.0,0.001652]
[1729780990676,1.00390646,67906.0,67905.0,0.001652]
[1729780992136,0.98852637,67906.0,67905.0,0.001652]
[1729780992355,0.99052637,67906.0,67905.0,0.001652]
[1729780993041,1.17378312,67906.0,67905.0,0.001652]
[1729780993539,1.17378312,67906.0,67893.0,0.22126015]
[1729780993540,0.017,67894.0,67893.0,0.22126015]
[1729780993771,0.62104856,67894.0,67893.0,0.22126015]
[1729780994011,0.147305,67886.0,67882.0,0.001666]
[1729780994263,0.48106556,67886.0,67882.0,0.001666]
[1729780994488,0.147312,67883.0,67882.0,0.001666]
[1729780995790,0.51907596,67883.0,67882.0,0.001666]
[1729780996021,0.90943271,67883.0,67882.0,0.001666]
[1729780996232,0.88342931,67883.0,67882.0,0.001666]
[1729780996452,0.95700569,67883.0,67882.0,0.001666]
[1729780996687,0.97265431,67883.0,67882.0,0.001666]
[1729781001023,0.33060075,67868.0,67867.0,0.22126015]
[1729781001229,0.48110456,67868.0,67867.0,0.22126015]
[1729781001453,0.33376056,67868.0,67862.0,0.001666]
[1729781001659,0.33061175,67863.0,67862.0,0.001666]
[1729781003772,0.147355,67863.0,67862.0,0.001666]
[1729781003986,0.294686,67869.0,67862.0,0.001666]
[1729781004201,0.147355,67863.0,67862.0,0.001666]
[1729781004420,0.147352,67865.0,67862.0,0.001666]
[1729781004630,0.47795475,67866.0,67862.0,0.001666]
[1729781004856,0.147355,67863.0,67862.0,0.001666]
[1729781006381,0.33061175,67863.0,67862.0,0.001666]
[1729781006593,0.42261293,67863.0,67862.0,0.001666]
[1729781007647,0.147355,67863.0,67862.0,0.001666]
[1729781011410,0.61111556,67863.0,67862.0,0.001666]
[1729781011618,0.75001556,67863.0,67862.0,0.001666]
[1729781012608,0.76001556,67863.0,67862.0,0.001666]
[1729781013800,0.42585881,67863.0,67862.0,0.001666]
[1729781014032,0.58611556,67863.0,67862.0,0.001666]
[1729781014269,0.58111556,67863.0,67862.0,0.001666]
[1729781014756,0.70120436,67863.0,67862.0,0.001666]
[1729781015011,0.58111556,67863.0,67862.0,0.001666]
[1729781015252,0.58611556,67863.0,67862.0,0.001666]
[1729781015479,0.58111556,67863.0,67862.0,0.001666]
[1729781015990,0.58611556,67863.0,67862.0,0.001666]
[1729781016202,0.70070436,67863.0,67862.0,0.001666]
[1729781016477,0.70570436,67863.0,67862.0,0.001666]
[1729781017542,0.70553075,67863.0,67862.0,0.001666]
[1729781017755,0.8837875,67863.0,67862.0,0.001666]
[1729781017968,0.8887875,67863.0,67862.0,0.001666]
[1729781018416,0.8937875,67863.0,67862.0,0.001666]
[1729781018641,0.9187875,67863.0,67862.0,0.001666]
[1729781018871,1.0067875,67863.0,67862.0,0.001666]
[1729781019096,1.0067875,67863.0,67857.0,0.001666]
[1729781019097,0.35862275,67858.0,67857.0,0.001666]
[1729781019327,0.60912656,67858.0,67857.0,0.001666]
[1729781019775,0.60912656,67858.0,67855.0,0.001666]
[1729781019776,0.028,67856.0,67855.0,0.001666]
[1729781019998,0.32787381,67856.0,67855.0,0.001666]
[1729781020213,0.42587381,67856.0,67855.0,0.001666]
[1729781020432,0.57637762,67856.0,67855.0,0.001666]
[1729781022179,0.42587381,67856.0,67855.0,0.001666]
[1729781022879,0.39787381,67856.0,67855.0,0.001666]
[1729781023973,0.42587381,67856.0,67855.0,0.001666]
[1729781024864,0.39787381,67856.0,67855.0,0.001666]
[1729781025484,0.29787381,67856.0,67855.0,0.001666]
[1729781027236,0.389018,67856.0,67855.0,0.001666]
[1729781027466,0.29787381,67856.0,67855.0,0.001666]
[1729781029453,0.14737,67856.0,67855.0,0.001666]
[1729781035278,0.148196,67856.0,67855.0,0.001666]
[1729781039107,0.29869981,67856.0,67855.0,0.001666]
[1729781040333,0.32669981,67856.0,67855.0,0.001666]
[1729781040574,0.57720362,67856.0,67855.0,0.001666]
[1729781041062,0.39869981,67856.0,67855.0,0.001666]
[1729781047268,0.39869981,67856.0,67842.0,0.080568]
[1729781047269,0.301436,67850.0,67842.0,0.080568]
[1729781047494,0.147399,67843.0,67842.0,0.080568]
[1729781048527,0.006668,67850.0,67842.0,0.217668]
[1729781048761,0.147393,67846.0,67842.0,0.365068]
[1729781049000,0.147393,67846.0,67842.0,0.217668]
[1729781049449,0.147395,67845.0,67842.0,0.217668]
[1729781049675,0.294776,67848.0,67842.0,0.217668]
[1729781049901,0.294772,67849.0,67842.0,0.217668]
[1729781049902,0.33065575,67843.0,67842.0,0.217668]
[1729781050391,0.33065575,67843.0,67842.0,0.080568]
[1729781050634,0.33065575,67843.0,67842.0,0.001668]
[1729781050635,0.42267833,67843.0,67842.0,0.001668]
[1729781051577,0.33065575,67843.0,67842.0,0.001668]
[1729781052938,0.5139125,67843.0,67842.0,0.001668]
[1729781053161,0.33065575,67843.0,67842.0,0.001668]
[1729781055402,0.147394,67846.0,67842.0,0.084668]
[1729781055644,0.22126015,67848.0,67843.0,0.147397]
[1729781055886,0.294773,67849.0,67843.0,0.147398]
[1729781056126,0.294776,67848.0,67842.0,0.084668]
[1729781056366,0.147391,67847.0,67842.0,0.084668]
[1729781056620,0.147394,67846.0,67842.0,0.232069]
[1729781057132,0.147399,67843.0,67842.0,0.084668]
[1729781059428,0.18325675,67845.0,67842.0,0.084668]
[1729781059654,0.147399,67843.0,67842.0,0.084668]
[1729781060550,0.294767,67851.0,67842.0,0.084668]
[1729781060551,0.18325675,67851.0,67842.0,0.084668]
[1729781060791,0.18325675,67851.0,67843.0,0.147398]
[1729781060792,0.147392,67846.0,67843.0,0.147398]
[1729781061007,0.147392,67846.0,67842.0,0.084668]
[1729781061008,0.147392,67846.0,67842.0,0.232067]
[1729781061665,0.147396,67845.0,67842.0,0.232067]
[1729781062173,0.147392,67847.0,67843.0,0.147398]
[1729781062392,0.294776,67848.0,67843.0,0.147398]
[1729781062840,0.294776,67848.0,67842.0,0.084668]
[1729781063294,0.147395,67845.0,67842.0,0.084668]
[1729781063968,0.294785,67846.0,67842.0,0.084668]
[1729781064192,0.147397,67844.0,67842.0,0.084668]
[1729781065779,0.18325675,67845.0,67842.0,0.084668]
[1729781066017,0.147399,67843.0,67842.0,0.084668]
[1729781066704,0.33065275,67845.0,67842.0,0.084668]
[1729781066947,0.147397,67844.0,67842.0,0.084668]
[1729781067185,0.147399,67843.0,67842.0,0.084668]
[1729781067456,0.33065175,67845.0,67842.0,0.084668]
[1729781068140,0.18325675,67845.0,67842.0,0.084668]
[1729781068356,0.147399,67843.0,67842.0,0.084668]
[1729781069711,0.147399,67843.0,67842.0,0.001668]
[1729781070676,0.33065575,67843.0,67842.0,0.001668]
[1729781073424,0.147399,67843.0,67842.0,0.001668]
[1729781073904,0.147397,67844.0,67842.0,0.001668]
[1729781074132,0.147395,67845.0,67842.0,0.001668]
[1729781074376,0.006668,67850.0,67842.0,0.001668]
[1729781074377,0.22126015,67848.0,67842.0,0.001668]
[1729781074614,0.294792,67845.0,67842.0,0.001668]
[1729781074865,0.147396,67844.0,67842.0,0.001668]
[1729781075388,0.147393,67846.0,67842.0,0.001668]
[1729781075621,0.147395,67845.0,67842.0,0.001668]
[1729781075859,0.147397,67844.0,67842.0,0.001668]
[1729781076118,0.006668,67850.0,67849.0,0.147386]
[1729781076367,0.006668,67850.0,67849.0,0.355786]
[1729781076612,0.006668,67850.0,67849.0,0.53904275]
[1729781077091,0.006668,67850.0,67849.0,0.74330628]
[1729781077324,0.006668,67850.0,67849.0,0.93822999]
[1729781077553,0.006668,67850.0,67849.0,0.96030562]
[1729781077807,0.000826,67856.0,67853.0,0.358877]
[1729781078029,0.000826,67856.0,67853.0,0.69263756]
[1729781079140,0.000826,67856.0,67853.0,0.70263756]
[1729781079609,0.000826,67856.0,67853.0,0.50938081]
[1729781080743,0.000826,67856.0,67853.0,0.69263756]
[1729781083486,0.000826,67856.0,67853.0,0.50938081]
[1729781084156,0.000826,67856.0,67853.0,0.358877]
[1729781085840,0.000826,67856.0,67853.0,0.2065]
[1729781086060,0.000826,67856.0,67853.0,0.353877]
[1729781087016,0.000826,67856.0,67853.0,0.147377]
[1729781091329,0.18375675,67855.0,67847.0,0.147389]
[1729781091558,0.294772,67850.0,67842.0,0.001668]
[1729781091777,0.294754,67853.0,67845.0,0.147394]
[1729781091999,0.294754,67853.0,67843.0,0.44530081]
[1729781092000,0.147385,67850.0,67846.0,0.147392]
[1729781092230,0.147391,67847.0,67844.0,0.147396]
[1729781092469,0.0005,67855.0,67842.0,0.001668]
[1729781092688,0.147385,67850.0,67845.0,0.147393]
[1729781093005,0.147386,67849.0,67845.0,0.147393]
[1729781093426,0.442149,67851.0,67846.0,0.147392]
[1729781093643,0.000826,67854.0,67853.0,0.147377]
[1729781094077,0.000826,67854.0,67850.0,0.29771434]
[1729781094078,0.000826,67854.0,67852.0,0.147379]
[1729781094925,0.000826,67854.0,67850.0,0.001652]
[1729781095133,0.000826,67854.0,67852.0,0.147378]
[1729781095573,0.000826,67854.0,67852.0,0.147379]
[1729781095989,0.000826,67854.0,67853.0,0.147377]
[1729781096820,0.000826,67854.0,67850.0,0.001652]
[1729781097037,0.000826,67854.0,67853.0,0.147377]
[1729781098096,0.000826,67854.0,67851.0,0.354879]
[1729781098300,0.000826,67854.0,67852.0,0.147379]
[1729781098520,0.000826,67854.0,67851.0,0.0794]
[1729781098750,0.000826,67854.0,67852.0,0.147379]
[1729781099401,0.000826,67854.0,67851.0,0.0794]
[1729781099833,0.000826,67854.0,67850.0,0.001652]
[1729781099834,0.147381,67851.0,67850.0,0.001652]
[1729781100794,0.29788481,67851.0,67850.0,0.001652]
[1729781101007,0.64668481,67851.0,67850.0,0.001652]
[1729781101937,0.64868481,67851.0,67850.0,0.001652]
[1729781102144,0.69267253,67851.0,67850.0,0.001652]
[1729781102373,0.66176117,67851.0,67850.0,0.001652]
[1729781103244,0.8562527,67851.0,67850.0,0.001652]
[1729781104371,0.85620159,67851.0,67850.0,0.001652]
[1729781105254,0.81226498,67851.0,67850.0,0.001652]
[1729781105453,0.81426498,67851.0,67850.0,0.001652]
[1729781105708,0.85820159,67851.0,67850.0,0.001652]
[1729781105916,1.04145834,67851.0,67850.0,0.001652]
[1729781106171,1.04145834,67851.0,67842.0,0.001668]
[1729781106172,0.403599,67843.0,67842.0,0.001668]
[1729781106444,0.403599,67843.0,67837.0,0.001668]
[1729781106445,0.57486675,67838.0,67837.0,1e-06]
[1729781106662,0.57486675,67838.0,67830.0,0.19260117]
[1729781106663,0.501625,67831.0,67830.0,0.19260117]
[1729781106916,0.164436,67826.0,67822.0,0.22126015]
[1729781107133,1.02065331,67826.0,67822.0,0.22126015]
[1729781107345,1.17115712,67826.0,67822.0,0.22126015]
[1729781107578,1.17115712,67826.0,67814.0,0.001668]
[1729781108014,0.83739656,67826.0,67814.0,0.001668]
[1729781109700,0.85294936,67826.0,67814.0,0.001668]
[1729781110184,0.85094936,67826.0,67814.0,0.001668]
[1729781110425,0.147436,67826.0,67814.0,0.001668]
[1729781110666,0.33069275,67826.0,67814.0,0.001668]
[1729781110898,0.33069275,67826.0,67815.0,0.147459]
[1729781111360,0.34586347,67826.0,67814.0,0.001668]
[1729781112547,0.33069275,67826.0,67814.0,0.001668]
[1729781113240,0.48119656,67826.0,67814.0,0.001668]
[1729781113471,0.14746,67815.0,67814.0,0.001668]
[1729781113717,0.14746,67815.0,67791.0,0.22126015]
[1729781113718,0.005,67806.0,67791.0,0.22126015]
[1729781113973,0.88529631,67806.0,67791.0,0.22126015]
[1729781114202,0.147494,67799.0,67791.0,0.22126015]
[1729781114433,0.48125456,67799.0,67791.0,0.22126015]
[1729781114668,0.147503,67795.0,67791.0,0.22126015]
[1729781114934,0.18325675,67802.0,67794.0,0.02396082]
[1729781115154,0.294982,67801.0,67794.0,0.02396082]
[1729781115381,0.147487,67803.0,67795.0,0.0756]
[1729781116598,0.22126015,67807.0,67799.0,0.08523306]
[1729781116821,0.22126015,67807.0,67800.0,0.147492]
[1729781117057,0.22126015,67817.0,67795.0,0.0806]
[1729781117058,0.18325675,67803.0,67795.0,0.0756]
[1729781117290,0.147484,67804.0,67797.0,0.147498]
[1729781117521,0.147484,67804.0,67795.0,0.30186015]
[1729781117522,0.147484,67804.0,67795.0,0.44936115]
[1729781117771,0.29494,67811.0,67796.0,0.10705575]
[1729781118005,0.294924,67814.0,67796.0,0.10705575]
[1729781118006,0.22126015,67807.0,67796.0,0.10705575]
[1729781118237,0.294924,67814.0,67804.0,0.147483]
[1729781118238,0.22126015,67810.0,67804.0,0.147483]
[1729781118497,0.4045169,67817.0,67798.0,0.001652]
[1729781118498,0.4045169,67817.0,67801.0,0.005]
[1729781118499,0.22126015,67817.0,67801.0,0.005]
[1729781118737,0.22126015,67817.0,67805.0,0.1347]
[1729781118961,0.22126015,67817.0,67813.0,0.230362]
[1729781119193,0.22126015,67817.0,67813.0,0.0829]
[1729781119444,0.294895,67821.0,67813.0,0.0829]
[1729781119685,0.22126015,67817.0,67813.0,0.0829]
[1729781119915,0.22126015,67817.0,67806.0,0.0764]
[1729781120144,0.51614415,67824.0,67808.0,0.22126015]
[1729781120145,0.147467,67812.0,67808.0,0.22126015]
[1729781120370,0.147467,67812.0,67806.0,0.0764]
[1729781120595,0.294902,67819.0,67806.0,0.0764]
[1729781120596,0.294917,67816.0,67807.0,0.22126015]
[1729781120827,0.36871715,67817.0,67808.0,0.147473]
[1729781121052,0.147461,67815.0,67807.0,0.147476]
[1729781121540,0.22126015,67817.0,67807.0,0.147476]
[1729781121541,0.22126015,67817.0,67807.0,0.147477]
[1729781121768,0.147458,67816.0,67807.0,0.442431]
[1729781122004,0.147461,67815.0,67807.0,0.147477]
[1729781122233,0.22126015,67817.0,67806.0,0.0764]
[1729781122234,0.51617115,67817.0,67806.0,0.37430626]
[1729781122453,0.147457,67816.0,67807.0,0.147477]
[1729781122903,0.29489,67822.0,67810.0,0.294941]
[1729781123146,0.147446,67822.0,67811.0,0.18620577]
[1729781123365,0.22126015,67824.0,67813.0,0.294927]
[1729781123637,0.147445,67822.0,67814.0,0.147462]
[1729781124090,0.147445,67822.0,67810.0,0.294941]
[1729781124091,0.147451,67819.0,67810.0,0.294941]
[1729781124319,0.294884,67824.0,67812.0,0.22126015]
[1729781124554,0.147448,67821.0,67812.0,0.29788002]
[1729781124822,0.22126015,67822.0,67812.0,0.00294902]
[1729781125051,0.22126015,67822.0,67809.0,0.294946]
[1729781125052,0.22126015,67822.0,67804.0,0.294966]
[1729781125053,0.18325675,67820.0,67804.0,0.294966]
[1729781125281,0.22126015,67822.0,67798.0,0.006652]
[1729781125282,0.18325675,67814.0,67798.0,0.006652]
[1729781125506,0.28287467,67822.0,67807.0,0.22126015]
[1729781125507,0.147474,67809.0,67807.0,0.22126015]
[1729781125734,0.18325675,67810.0,67800.0,0.29626015]
[1729781125735,0.294951,67808.0,67800.0,0.29626015]
[1729781125961,0.18325675,67810.0,67800.0,0.29626015]
[1729781125962,0.147478,67807.0,67800.0,0.29626015]
[1729781126204,0.15050381,67821.0,67800.0,0.29626015]
[1729781126205,0.147469,67811.0,67802.0,0.147487]
[1729781126426,0.147468,67811.0,67802.0,0.147487]
[1729781126671,0.294927,67814.0,67802.0,0.147487]
[1729781126902,0.36872415,67813.0,67805.0,0.147481]
[1729781127131,0.22126015,67822.0,67808.0,0.29495]
[1729781127376,0.22126015,67815.0,67812.0,0.294929]
[1729781127597,0.22126015,67822.0,67813.0,0.0787]
[1729781127818,0.14745,67820.0,67813.0,0.0787]
[1729781128038,0.18325675,67830.0,67813.0,0.0787]
[1729781128273,0.005,67832.0,67814.0,0.147461]
[1729781128274,0.22126015,67824.0,67814.0,0.147461]
[1729781128520,0.18325675,67826.0,67813.0,0.0787]
[1729781128521,0.14745,67820.0,67813.0,0.0787]
[1729781128750,0.147452,67819.0,67813.0,0.0787]
[1729781128976,0.147454,67818.0,67813.0,0.0787]
[1729781129451,0.294893,67821.0,67813.0,0.0787]
[1729781129694,0.294893,67821.0,67801.0,0.294976]
[1729781129695,0.147471,67810.0,67806.0,0.0823]
[1729781129952,0.18325675,67814.0,67801.0,0.430976]
[1729781129953,0.18325675,67814.0,67807.0,0.22126015]
[1729781129954,0.18325675,67808.0,67807.0,0.22126015]
[1729781130175,0.18325675,67808.0,67801.0,0.0823]
[1729781130176,0.294925,67814.0,67801.0,0.0823]
[1729781130177,0.147482,67805.0,67801.0,0.0823]
[1729781130406,0.14748,67806.0,67801.0,0.0823]
[1729781130637,0.147488,67802.0,67801.0,0.0823]
[1729781130873,0.147488,67802.0,67798.0,0.001652]
[1729781130874,0.294976,67802.0,67798.0,0.001652]
[1729781131124,0.294968,67804.0,67798.0,0.001652]
[1729781131125,0.33075075,67799.0,67798.0,0.001652]
[1729781131382,0.42282083,67799.0,67798.0,0.001652]
[1729781131606,0.57332464,67799.0,67798.0,0.001652]
[1729781132298,0.59632464,67799.0,67798.0,0.001652]
[1729781132529,0.41306789,67799.0,67798.0,0.001652]
[1729781133471,0.32099781,67799.0,67798.0,0.001652]
[1729781134155,0.54725796,67799.0,67798.0,0.001652]
[1729781134398,0.60555686,67799.0,67798.0,0.001652]
[1729781134865,0.60755686,67799.0,67798.0,0.001652]
[1729781135114,0.60755686,67799.0,67794.0,0.001668]
[1729781135116,0.154503,67795.0,67794.0,0.001668]
[1729781135351,0.71756586,67795.0,67794.0,0.001668]
[1729781135581,0.84626586,67795.0,67794.0,0.001668]
[1729781136041,0.84626586,67795.0,67783.0,0.22126015]
[1729781136043,0.53407705,67788.0,67783.0,0.22126015]
[1729781136259,0.79078086,67788.0,67784.0,0.22126015]
[1729781136493,0.79078086,67788.0,67782.0,0.001668]
[1729781136976,0.79078086,67788.0,67787.0,0.001168]